fUSD/lending_fUSD_20241003
["ID","MTS","AMOUNT","RATE_DAILY","PERIOD"]
[339738853,1727920248278,-209.04,0.00015,2]
[339738854,1727920248287,-209.04,0.00015,2]
[339738855,1727920248297,-209.04,0.00015,2]
[339738856,1727920248307,-209.04,0.00015,2]
[339738857,1727920248317,-209.04,0.00015,2]
[339738858,1727920248327,-209.04,0.00015,2]
[339738859,1727920248338,-209.04,0.00015,2]
[339738860,1727920248348,-209.04,0.00015,2]
[339738861,1727920248358,-209.04,0.00015,2]
[339738862,1727920248368,-209.04,0.00015,2]
[339738863,1727920248377,-266.0,0.0001523,2]
[339738864,1727920248388,-1046.57,0.00015255,2]
[339738865,1727920248398,-201.0,0.0001526,2]
[339738866,1727920248408,-428.0,0.0001526,2]
[339738867,1727920248417,-363.03,0.00015342,2]
[339738868,1727920248428,-358.42,0.00015342,2]
[339738869,1727920248437,-358.42,0.00015342,2]
[339738870,1727920248447,-358.42,0.00015342,2]
[339738871,1727920248456,-358.42,0.00015342,2]
[339738872,1727920248466,-358.42,0.00015342,2]
[339738873,1727920248476,-358.42,0.00015342,2]
[339738874,1727920248486,-358.42,0.00015342,2]
[339738875,1727920248495,-357.79,0.00015342,2]
[339738876,1727920248505,-237.47,0.00015396,2]
[339738877,1727920248515,-1046.57,0.00015529,2]
[339738878,1727920248524,-201.0,0.000156,2]
[339738879,1727920248534,-428.0,0.000156,2]
[339738880,1727920248544,-799.0,0.00015652,2]
[339738881,1727920248554,-155.07,0.00015698,2]
[339738882,1727920248564,-200.0,0.000157,3]
[339738883,1727920248575,-1014.26,0.0001573,2]
[339738884,1727920248586,-1046.57,0.00015803,2]
[339738885,1727920248596,-266.0,0.0001592,2]
[339738886,1727920248607,-201.0,0.0001595,2]
[339738887,1727920248617,-428.0,0.0001595,2]
[339738888,1727920248626,-250.0,0.00016,2]
[339738889,1727920248637,-1200.0,0.00016,6]
[339738890,1727920248647,-1046.57,0.00016077,2]
[339738891,1727920248657,-150.0,0.00016099,2]
[339738892,1727920248667,-166.80806133,0.00016164,2]
[339738893,1727920248677,-298.395,0.00016164,2]
[339738895,1727920248687,-298.395,0.00016164,2]
[339738896,1727920248698,-533.72,0.00016164,2]
[339738897,1727920248709,-164.95,0.00016164,2]
[339738898,1727920248718,-358.42,0.00016164,2]
[339738899,1727920248729,-358.42,0.00016164,2]
[339738900,1727920248739,-428.65,0.00016164,2]
[339738901,1727920248750,-428.65,0.00016164,2]
[339738902,1727920248761,-358.42,0.00016164,2]
[339738903,1727920248771,-254.22,0.00016164,2]
[339738904,1727920248780,-156.86,0.00016164,2]
[339738905,1727920248790,-1000.0,0.00016188,2]
[339738906,1727920248799,-1500.0,0.00016246,2]
[339738907,1727920248809,-201.0,0.0001629,2]
[339738908,1727920248820,-428.0,0.0001629,2]
[339738909,1727920248916,-1046.57,0.00016351,2]
[339738910,1727920248926,-799.0,0.00016434,2]
[339738911,1727920248935,-250.0,0.00016438,2]
[339738912,1727920248944,-150.15,0.00016438,2]
[339738913,1727920248954,-339.1,0.00016439,2]
[339738914,1727920248964,-266.0,0.0001662,2]
[339738915,1727920248974,-1046.57,0.00016625,2]
[339738916,1727920248983,-201.0,0.0001663,2]
[339738917,1727920248993,-428.0,0.0001663,2]
[339738918,1727920249002,-348.44,0.00016637,2]
[339738919,1727920249013,-200.0,0.000167,3]
[339738920,1727920249023,-158.29969,0.00016706,2]
[339738921,1727920249037,-184.555968,0.00016706,2]
[339738922,1727920249047,-222.934714,0.00016706,2]
[339738923,1727920249057,-158.449225,0.00016706,2]
[339738924,1727920249068,-237.47,0.00016795,2]
[339738925,1727920249078,-1046.57,0.00016899,2]
[339738926,1727920249088,-201.0,0.0001697,2]
[339738927,1727920249099,-428.0,0.0001697,2]
[339738928,1727920249109,-400.0,0.00017,2]
[339738929,1727920249119,-1046.57,0.00017173,2]
[339738930,1727920249130,-1014.26,0.00017195,2]
[339738931,1727920249143,-266.0,0.0001731,2]
[339738932,1727920249155,-201.0,0.0001732,2]
[339738933,1727920249168,-428.0,0.0001732,2]
[339738934,1727920249177,-151.0,0.0001732,2]
[339738935,1727920249188,-151.0,0.0001732,2]
[339738936,1727920249197,-151.0,0.0001732,2]
[339738937,1727920249207,-151.0,0.0001732,2]
[339738938,1727920249218,-508.411665,0.0001732,2]
[339738939,1727920249229,-508.411665,0.0001732,2]
[339738940,1727920249240,-151.0,0.0001732,2]
[339738941,1727920249250,-151.0,0.0001732,2]
[339738942,1727920249260,-1046.57,0.00017447,2]
[339738943,1727920249271,-1000.0,0.000175,3]
[339738944,1727920249281,-158.29969,0.00017541,2]
[339738945,1727920249291,-222.934714,0.00017541,2]
[339738946,1727920249301,-155.07,0.0001766,2]
[339738947,1727920249311,-201.0,0.0001766,2]
[339738948,1727920249322,-428.0,0.0001766,2]
[339738949,1727920249332,-1000.0,0.0001766,2]
[339738950,1727920249341,-200.0,0.000177,4]
[339738951,1727920249351,-1046.57,0.00017721,2]
[339738952,1727920249360,-700.0,0.0001777,2]
[339738953,1727920249370,-700.0,0.0001777,2]
[339738954,1727920249379,-500.43916896,0.0001777,2]
[339738955,1727920249388,-151.0,0.00017808,2]
[339738956,1727920249398,-151.0,0.00017808,2]
[339738957,1727920249407,-151.0,0.00017808,2]
[339738958,1727920249416,-151.0,0.00017808,2]
[339738959,1727920249426,-151.0,0.00017808,2]
[339738960,1727920249436,-151.0,0.00017808,2]
[339738961,1727920249446,-151.0,0.00017808,2]
[339738962,1727920249455,-151.0,0.00017808,2]
[339738963,1727920249465,-231.799647,0.00017808,2]
[339738964,1727920249475,-151.0,0.00017808,2]
[339738965,1727920249485,-223.70884,0.00017808,2]
[339738966,1727920249495,-151.0,0.00017808,2]
[339738967,1727920249504,-150.45,0.00017808,2]
[339738968,1727920249514,-600.0,0.000179,2]
[339738969,1727920249524,-700.0,0.0001797,2]
[339738970,1727920249535,-700.0,0.0001797,2]
[339738971,1727920249545,-700.0,0.0001797,2]
[339738972,1727920249554,-700.0,0.0001797,2]
[339738973,1727920249564,-700.0,0.0001797,2]
[339738974,1727920249577,-400.0,0.0001797,2]
[339738975,1727920249587,-400.0,0.0001797,2]
[339738976,1727920249597,-400.0,0.0001797,2]
[339738977,1727920249608,-400.0,0.0001797,2]
[339738978,1727920249618,-400.0,0.0001797,2]
[339738979,1727920249628,-500.0,0.0001798,2]
[339738980,1727920249639,-500.0,0.00017989,2]
[339738981,1727920249648,-1046.57,0.00017995,2]
[339738982,1727920249658,-500.0,0.00017999,2]
[339738983,1727920249670,-500.0,0.00017999,2]
[339738984,1727920249680,-500.0,0.00017999,2]
[339738985,1727920249690,-500.0,0.00017999,2]
[339738986,1727920249700,-500.0,0.00017999,2]
[339738987,1727920249709,-500.0,0.00017999,2]
[339738988,1727920249720,-500.0,0.00017999,2]
[339738989,1727920249729,-500.0,0.00017999,2]
[339738990,1727920249738,-500.0,0.00017999,2]
[339738991,1727920249749,-500.0,0.00017999,2]
[339738992,1727920249758,-500.0,0.00017999,2]
[339738993,1727920249767,-500.0,0.00017999,2]
[339738994,1727920249777,-500.0,0.00017999,2]
[339738995,1727920249786,-500.0,0.00017999,2]
[339738996,1727920249796,-500.0,0.00017999,2]
[339738997,1727920249806,-500.0,0.00017999,2]
[339738998,1727920249823,-500.0,0.00017999,2]
[339738999,1727920249835,-500.0,0.00017999,2]
[339739000,1727920249845,-179.78549765,0.00017999,2]
[339739001,1727920249855,-1306.94795558,0.00018,2]
[339739002,1727920249864,-250.0,0.00018,2]
[339739003,1727920249874,-266.0,0.00018,2]
[339739004,1727920249883,-201.0,0.00018,2]
[339739005,1727920249892,-428.0,0.00018,2]
[339739006,1727920249902,-199.3,0.00018,2]
[339739007,1727920249911,-150.0,0.00018,2]
[339739008,1727920249920,-444.7226,0.00018279,2]
[339739009,1727920249929,-57.23652547,0.00018279,2]
[339739011,1727920250491,-387.48607453,0.00018279,2]
[339739012,1727920250501,-420.24836264,0.00018587,2]
[339739013,1727920250730,-209.04,0.00015,2]
[339739014,1727920250740,-209.04,0.00015,2]
[339739015,1727920250749,-1579.75163736,0.00018587,2]
[339739016,1727920250758,-3000.0,0.000186,2]
[339739017,1727920250767,-1014.26,0.0001866,2]
[339739018,1727920250777,-266.0,0.0001869,2]
[339739019,1727920250786,-151.0,0.0001869,2]
[339739020,1727920250795,-151.0,0.0001869,2]
[339739021,1727920250804,-200.0,0.000187,5]
[339739022,1727920250813,-348.44,0.000189,2]
[339739023,1727920250823,-450.0,0.00019,2]
[339739024,1727920250832,-500.0,0.00019178,2]
[339739025,1727920250841,-266.0,0.0001938,2]
[339739026,1727920250850,-153.6,0.0001961,2]
[339739027,1727920250860,-200.0,0.000197,6]
[339739028,1727920250869,-1000.0,0.0002,15]
[339739029,1727920250878,-1100.0,0.0002,20]
[339739030,1727920250888,-678.73555009,0.0002,2]
[339739031,1727920250897,-678.73555009,0.0002,2]
[339739032,1727920250906,-678.73555009,0.0002,2]
[339739033,1727920250916,-155.60488116,0.0002,2]
[339739034,1727920250925,-6367.20686161,0.0002,2]
[339739035,1727920250936,-7109.06324259,0.0002,2]
[339739036,1727920250946,-11418.35513116,0.0002,2]
[339739037,1727920250957,-1031.00172718,0.0002,2]
[339739038,1727920250968,-1026.91324586,0.0002,2]
[339739039,1727920250978,-13476.2701042,0.0002,2]
[339739040,1727920250987,-12585.99450507,0.0002,2]
[339739041,1727920250998,-890.27559913,0.0002,2]
[339739042,1727920251007,-627.96641087,0.0002,2]
[339739043,1727920251018,-1363.68834929,0.0002,2]
[339739044,1727920251029,-2023.404,0.0002,2]
[339739045,1727920251040,-796.06408137,0.0002,2]
[339739046,1727920251121,-5063.96244553,0.0002,2]
[339739047,1727920251133,-320.10297877,0.0002,2]
[339739048,1727920251146,-1596.3,0.0002,2]
[339739049,1727920251158,-1684.78183837,0.0002,2]
[339739050,1727920251167,-1532.69454382,0.0002,2]
[339739051,1727920251179,-577.30545618,0.0002,2]
[339739052,1727920251188,-250.0,0.0002,2]
[339739053,1727920251198,-151.0,0.0002,2]
[339739054,1727920251208,-16.19961726,0.0002,2]
[339739055,1727920251219,-136.68618974,0.0002,2]
[339739056,1727920251228,-258.845048,0.0002,2]
[339739057,1727920251238,-258.845048,0.0002,2]
[339739058,1727920251248,-241.256368,0.0002,2]
[339739059,1727920251257,-241.256368,0.0002,2]
[339739060,1727920251267,-1700.8579444,0.0002,2]
[339739061,1727920251279,-299.1420556,0.0002,2]
[339739062,1727920251288,-12.8629434,0.0002,2]
[339739063,1727920251301,-149.9491076,0.0002,2]
[339739064,1727920251310,-162.812051,0.0002,2]
[339739065,1727920251320,-882.0714,0.0002,2]
[339739066,1727920251329,-645.1674414,0.0002,2]
[339739067,1727920251341,-236.9039586,0.0002,2]
[339739068,1727920251350,-217.029087,0.0002,2]
[339739069,1727920251360,-217.029087,0.0002,2]
[339739070,1727920251369,-1537.599537,0.0002,2]
[339739071,1727920251379,-153.490666,0.0002,2]
[339739072,1727920251391,-1537.599537,0.0002,2]
[339739073,1727920251403,-151.0,0.0002,2]
[339739074,1727920251413,-151.0,0.0002,2]
[339739075,1727920251425,-151.0,0.0002,2]
[339739076,1727920251434,-159.995578,0.0002,2]
[339739077,1727920251444,-159.995578,0.0002,2]
[339739078,1727920251454,-151.0,0.0002,2]
[339739079,1727920251465,-305.22831853,0.0002,5]
[339739080,1727920251476,-1086.34670665,0.0002,5]
[339739081,1727920251530,-209.04,0.00015,2]
[339739082,1727920251539,-209.04,0.00015,2]
[339739083,1727920251548,-1046.57,0.00018269,2]
[339739084,1727920251558,-1108.42497482,0.0002,5]
[339739085,1727920251567,-517.17397348,0.0002001,2]
[339739086,1727920251579,-1482.82602652,0.0002001,2]
[339739087,1727920251588,-151.0,0.0002002,2]
[339739088,1727920251599,-151.0,0.0002002,2]
[339739089,1727920251608,-48.82747364,0.0002002,2]
[339739090,1727920251622,-102.17252636,0.0002002,2]
[339739091,1727920251632,-151.0,0.0002002,2]
[339739092,1727920251641,-151.0,0.0002002,2]
[339739093,1727920251651,-151.0,0.0002002,2]
[339739094,1727920251661,-172.23231003,0.0002002,2]
[339739095,1727920251672,-13.90226797,0.0002002,2]
[339739096,1727920251681,-186.134578,0.0002002,2]
[339739097,1727920251691,-151.0,0.0002002,2]
[339739098,1727920251700,-205.576621,0.0002002,2]
[339739099,1727920251709,-205.576621,0.0002002,2]
[339739100,1727920251719,-151.0,0.0002002,2]
[339739101,1727920251728,-3631.047606,0.0002002,2]
[339739102,1727920251737,-151.0,0.0002002,2]
[339739103,1727920251746,-204.23188,0.0002002,2]
[339739104,1727920251756,-204.23188,0.0002002,2]
[339739105,1727920251765,-215.0,0.0002007,2]
[339739106,1727920251774,-202.0,0.0002007,2]
[339739107,1727920251783,-266.0,0.0002007,2]
[339739108,1727920251793,-1014.26,0.00020125,2]
[339739109,1727920251802,-1000.0,0.0002015,15]
[339739110,1727920251812,-1257.96,0.00020366,2]
[339739111,1727920251823,-2500.0,0.00020377,2]
[339739112,1727920251832,-1000.0,0.000205,15]
[339739113,1727920251841,-2110.0,0.000205,2]
[339739114,1727920251849,-1100.03390401,0.0002058,2]
[339739115,1727920251859,-1096.5783249,0.0002058,2]
[339739116,1727920251869,-1123.9001466,0.0002058,2]
[339739117,1727920251879,-1014.64397905,0.0002058,2]
[339739118,1727920251890,-5.32752265,0.0002058,2]
[339739119,1727920251899,-1101.01817564,0.0002058,2]
[339739120,1727920251909,-234.5554239,0.0002058,2]
[339739121,1727920251921,-782.922097,0.0002058,2]
[339739122,1727920251930,-200.0,0.000207,7]
[339739123,1727920251939,-1000.0,0.0002075,15]
[339739124,1727920251948,-215.0,0.0002076,2]
[339739125,1727920251958,-202.0,0.0002076,2]
[339739126,1727920251967,-266.0,0.0002076,2]
[339739127,1727920251976,-152.59744376,0.000208,2]
[339739128,1727920251985,-1257.96,0.00020895,2]
[339739129,1727920251995,-1077.74010523,0.00020999,2]
[339739130,1727920252006,-535.85788251,0.00020999,2]
[339739131,1727920252017,-1534.61932229,0.00020999,2]
[339739132,1727920252028,-338.0226125,0.00020999,2]
[339739136,1727920253187,-151.64,0.00012001,2]
[339739137,1727920253197,-151.64,0.00013501,2]
[339739138,1727920253206,-27.22,0.00015,2]
[339739139,1727920253220,-181.82,0.00015,2]
[339739140,1727920253230,-209.04,0.00015,2]
[339739141,1727920253240,-209.04,0.00015,2]
[339739142,1727920253250,-209.04,0.00015,2]
[339739143,1727920253260,-209.04,0.00015,2]
[339739144,1727920253269,-46.47868887,0.00015,2]
[339739145,1727920253313,-162.56131113,0.00015,2]
[339739146,1727920253323,-209.04,0.00015,2]
[339739147,1727920253332,-209.04,0.00015,2]
[339739148,1727920253341,-209.04,0.00015,2]
[339739149,1727920253351,-209.04,0.00015,2]
[339739150,1727920253360,-209.04,0.00015,2]
[339739151,1727920253370,-151.64,0.00015001,2]
[339739152,1727920253379,-150.0,0.000158,2]
[339739153,1727920253389,-151.64,0.00016502,2]
[339739154,1727920253398,-151.64,0.00018002,2]
[339739155,1727920253407,-1046.57,0.00018543,2]
[339739156,1727920253417,-1046.57,0.00018817,2]
[339739157,1727920253426,-617.174675,0.00019,2]
[339739158,1727920253435,-1046.62457729,0.00019091,2]
[339739159,1727920253445,-414.27943658,0.0002,2]
[339739160,1727920253456,-85.72056342,0.0002,2]
[339739161,1727920253465,-5092.43335327,0.00020999,2]
[339739162,1727920253475,-797.79178062,0.00021,2]
[339739163,1727920253486,-361.01292754,0.00021,2]
[339739164,1727920253497,-951.19529184,0.00021,2]
[339739165,1727920253507,-250.0,0.00021,2]
[339739166,1727920253516,-500.0,0.00021,60]
[339739167,1727920253525,-500.0,0.00021,60]
[339739168,1727920253534,-426.56492949,0.00021,60]
[339739169,1727920253551,-75.62377589,0.00021,60]
[339739170,1727920253560,-500.0,0.00021,60]
[339739171,1727920253572,-500.0,0.00021,60]
[339739172,1727920253581,-500.0,0.00021,60]
[339739173,1727920253591,-587.4494768,0.00021,60]
[339739174,1727920253600,-500.0,0.00021,60]
[339739175,1727920253610,-250.5006806,0.00021,60]
[339739176,1727920253620,-500.0,0.00021,60]
[339739177,1727920253630,-631.33287567,0.00021,60]
[339739178,1727920253640,-500.0,0.00021,60]
[339739179,1727920253649,-500.0,0.00021,60]
[339739180,1727920253658,-197.84260025,0.00021,60]
[339739181,1727920253683,-302.15739975,0.00021,60]
[339739182,1727920253692,-500.0,0.00021,60]
[339739183,1727920253702,-269.05716194,0.00021,60]
[339739184,1727920253715,-230.94283806,0.00021,60]
[339739185,1727920253725,-337.1732536,0.00021,60]
[339739186,1727920253737,-162.8267464,0.00021,60]
[339739187,1727920253746,-500.0,0.00021,60]
[339739188,1727920253756,-500.0,0.00021,60]
[339739189,1727920253766,-500.0,0.00021,60]
[339739190,1727920253776,-500.0,0.00021,60]
[339739191,1727920253785,-500.0,0.00021,60]
[339739192,1727920253795,-500.0,0.00021,60]
[339739193,1727920253804,-506.23751098,0.00021,60]
[339739194,1727920253814,-500.0,0.00021,60]
[339739195,1727920253824,-561.90470111,0.00021,60]
[339739196,1727920253833,-500.0,0.00021,60]
[339739197,1727920253842,-500.0,0.00021,60]
[339739198,1727920253852,-500.0,0.00021,60]
[339739199,1727920253861,-500.0,0.00021,60]
[339739200,1727920253871,-631.30661297,0.00021,60]
[339739201,1727920253881,-500.0,0.00021,60]
[339739202,1727920253890,-500.0,0.00021,60]
[339739203,1727920253899,-500.0,0.00021,60]
[339739204,1727920253909,-500.0,0.00021,60]
[339739205,1727920253918,-500.0,0.00021,60]
[339739206,1727920253933,-500.0,0.00021,60]
[339739207,1727920253943,-501.72562136,0.00021,60]
[339739208,1727920253953,-549.7499906,0.00021,60]
[339739209,1727920253963,-500.0,0.00021,60]
[339739210,1727920253974,-500.0,0.00021,60]
[339739211,1727920253983,-500.0,0.00021,60]
[339739212,1727920253992,-500.0,0.00021,60]
[339739213,1727920254002,-500.0,0.00021,60]
[339739214,1727920254012,-500.0,0.00021,60]
[339739215,1727920254021,-500.0,0.00021,60]
[339739216,1727920254031,-500.0,0.00021,60]
[339739217,1727920254041,-613.6347637,0.00021,60]
[339739218,1727920254050,-500.0,0.00021,60]
[339739219,1727920254060,-500.0,0.00021,60]
[339739220,1727920254069,-500.0,0.00021,60]
[339739221,1727920254085,-500.0,0.00021,60]
[339739222,1727920254095,-500.0,0.00021,60]
[339739223,1727920254105,-500.0,0.00021,60]
[339739224,1727920254115,-500.0,0.00021,60]
[339739225,1727920254124,-449.26138796,0.00021,60]
[339739226,1727920254135,-500.0,0.00021,60]
[339739227,1727920254147,-534.83026479,0.00021,60]
[339739228,1727920254157,-432.31226204,0.00021,60]
[339739229,1727920254167,-500.0,0.00021,60]
[339739230,1727920254176,-500.0,0.00021,60]
[339739231,1727920254186,-500.0,0.00021,60]
[339739232,1727920254195,-500.0,0.00021,60]
[339739233,1727920254205,-500.0,0.00021,60]
[339739234,1727920254215,-500.0,0.00021,60]
[339739235,1727920254225,-500.0,0.00021,60]
[339739236,1727920254235,-500.0,0.00021,60]
[339739237,1727920254244,-509.74396663,0.00021,60]
[339739238,1727920254253,-383.60237974,0.00021,60]
[339739239,1727920254263,-500.0,0.00021,60]
[339739240,1727920254273,-500.0,0.00021,60]
[339739241,1727920254282,-500.0,0.00021,60]
[339739242,1727920254292,-500.0,0.00021,60]
[339739243,1727920254302,-500.0,0.00021,60]
[339739244,1727920254311,-500.0,0.00021,60]
[339739245,1727920254328,-500.0,0.00021,60]
[339739246,1727920254345,-506.61206026,0.00021,60]
[339739247,1727920254355,-500.0,0.00021,60]
[339739248,1727920254365,-500.0,0.00021,60]
[339739249,1727920254379,-500.0,0.00021,60]
[339739250,1727920254389,-500.0,0.00021,60]
[339739251,1727920254399,-500.0,0.00021,60]
[339739252,1727920254408,-500.0,0.00021,60]
[339739253,1727920254417,-500.0,0.00021,60]
[339739254,1727920254427,-262.16892915,0.00021,60]
[339739255,1727920254521,-237.83107085,0.00021,60]
[339739256,1727920254530,-500.0,0.00021,60]
[339739257,1727920254539,-501.49265155,0.00021,60]
[339739258,1727920254549,-500.0,0.00021,60]
[339739259,1727920254559,-500.0,0.00021,60]
[339739260,1727920254567,-500.0,0.00021,60]
[339739261,1727920254580,-500.0,0.00021,60]
[339739262,1727920254589,-500.0,0.00021,60]
[339739263,1727920254598,-500.0,0.00021,60]
[339739264,1727920254607,-500.0,0.00021,60]
[339739265,1727920254617,-500.0,0.00021,60]
[339739266,1727920254626,-501.75255509,0.00021,60]
[339739267,1727920254635,-500.0,0.00021,60]
[339739268,1727920254644,-500.0,0.00021,60]
[339739269,1727920254653,-542.99499072,0.00021,60]
[339739270,1727920254662,-500.0,0.00021,60]
[339739271,1727920254672,-500.0,0.00021,60]
[339739272,1727920254681,-500.0,0.00021,60]
[339739273,1727920254690,-500.0,0.00021,60]
[339739274,1727920254699,-500.0,0.00021,60]
[339739275,1727920254708,-500.0,0.00021,60]
[339739276,1727920254717,-280.62222969,0.00021,60]
[339739277,1727920254726,-500.0,0.00021,60]
[339739278,1727920254736,-500.0,0.00021,60]
[339739279,1727920254745,-500.0,0.00021,60]
[339739280,1727920254754,-500.0,0.00021,60]
[339739281,1727920254764,-500.0,0.00021,60]
[339739282,1727920254773,-500.0,0.00021,60]
[339739283,1727920254783,-506.21366286,0.00021,60]
[339739284,1727920254793,-500.0,0.00021,60]
[339739285,1727920254803,-257.7391677,0.00021,60]
[339739286,1727920254812,-500.0,0.00021,60]
[339739287,1727920254823,-500.0,0.00021,60]
[339739288,1727920254832,-500.0,0.00021,60]
[339739289,1727920254842,-500.0,0.00021,60]
[339739290,1727920254852,-500.0,0.00021,60]
[339739291,1727920254863,-500.0,0.00021,60]
[339739292,1727920254873,-500.0,0.00021,60]
[339739293,1727920254883,-501.73905874,0.00021,60]
[339739294,1727920254893,-500.0,0.00021,60]
[339739295,1727920254904,-500.0,0.00021,60]
[339739296,1727920254914,-505.93631985,0.00021,60]
[339739297,1727920254925,-500.0,0.00021,60]
[339739298,1727920254936,-500.0,0.00021,60]
[339739299,1727920254945,-502.84652154,0.00021,60]
[339739300,1727920254954,-500.0,0.00021,60]
[339739301,1727920254963,-500.0,0.00021,60]
[339739302,1727920254973,-500.0,0.00021,60]
[339739303,1727920254982,-500.0,0.00021,60]
[339739304,1727920254991,-500.0,0.00021,60]
[339739305,1727920255001,-500.0,0.00021,60]
[339739306,1727920255010,-505.93352998,0.00021,60]
[339739307,1727920255020,-500.0,0.00021,60]
[339739308,1727920255031,-500.0,0.00021,60]
[339739309,1727920255041,-500.0,0.00021,60]
[339739310,1727920255386,-397.13386476,0.00021,60]
[339739312,1727920255478,-102.86613524,0.00021,60]
[339739313,1727920255488,-500.0,0.00021,60]
[339739314,1727920255498,-500.0,0.00021,60]
[339739315,1727920255507,-222.34185504,0.00021,60]
[339739316,1727920255522,-284.6822633,0.00021,60]
[339739317,1727920255531,-287.32945068,0.00021,60]
[339739318,1727920255543,-212.67054932,0.00021,60]
[339739319,1727920255553,-158.76282996,0.00021,60]
[339739320,1727920255562,-595.95232619,0.00021,60]
[339739321,1727920255572,-234.48783119,0.00021,60]
[339739322,1727920255621,-258.39,0.00021,60]
[339739323,1727920255632,-7.12216881,0.00021,60]
[339739324,1727920255642,-500.0,0.00021,60]
[339739325,1727920255653,-500.0,0.00021,60]
[339739326,1727920255664,-266.28538695,0.00021,60]
[339739327,1727920255673,-611.02393362,0.00021,60]
[339739328,1727920255683,-500.0,0.00021,60]
[339739329,1727920255693,-500.0,0.00021,60]
[339739330,1727920255703,-500.0,0.00021,60]
[339739331,1727920255715,-500.0,0.00021,60]
[339739332,1727920255725,-500.0,0.00021,60]
[339739333,1727920255736,-500.0,0.00021,60]
[339739334,1727920255749,-298.395,0.00021,2]
[339739335,1727920255760,-500.0,0.00021,60]
[339739336,1727920255772,-298.395,0.00021,2]
[339739337,1727920255782,-500.65203217,0.00021,60]
[339739338,1727920255794,-298.395,0.00021,2]
[339739339,1727920255804,-298.395,0.00021,2]
[339739340,1727920255814,-298.395,0.00021,2]
[339739341,1727920255823,-298.395,0.00021,2]
[339739342,1727920255832,-500.0,0.00021,60]
[339739343,1727920255841,-4.08122564,0.00021,60]
[339739344,1727920255907,-495.91877436,0.00021,60]
[339739345,1727920255916,-500.0,0.00021,60]
[339739346,1727920255926,-500.0,0.00021,60]
[339739347,1727920255935,-366.05081246,0.00021,60]
[339739348,1727920255945,-500.0,0.00021,60]
[339739349,1727920255955,-500.0,0.00021,60]
[339739350,1727920255967,-500.0,0.00021,60]
[339739351,1727920255976,-309.91636991,0.00021,60]
[339739352,1727920255986,-500.0,0.00021,60]
[339739353,1727920255997,-500.0,0.00021,60]
[339739354,1727920256008,-500.0,0.00021,60]
[339739355,1727920256018,-500.0,0.00021,60]
[339739356,1727920256027,-500.0,0.00021,60]
[339739357,1727920256037,-507.6941226,0.00021,60]
[339739359,1727920256049,-500.0,0.00021,60]